Workbook

Sheet Sheet1
A1: 桐梓县2023年招聘合同制警务辅助人员笔试、面试成绩、加分及总成绩公示表
A2: 序号 | B2: 准考证号 | C2: 报考职位 | D2: 笔试百分制成绩 | E2: 笔试按60%折算总成绩 | F2: 面试成绩 | G2: 面试按40%折算总成绩 | H2: 加分分值 | I2: 总成绩 | J2: 是否进入体检环节
A3: 1 | B3: 20230102 | C3: 1 | D3: 72.05 | E3: =D3*0.6 -> 43.23 | F3: 69.90 | G3: =F3*0.4 -> 27.96 | H3: 2 | I3: =E3+G3+H3 -> 73.19 | J3: 是
A4: 2 | B4: 20230104 | C4: 1 | D4: 74.07 | E4: =D4*0.6 -> 44.44 | F4: 68.22 | G4: =F4*0.4 -> 27.29 | H4: 1 | I4: =E4+G4+H4 -> 72.73 | J4: 否
A5: 3 | B5: 20230105 | C5: 1 | D5: 69.69 | E5: =D5*0.6 -> 41.81 | F5: 72.16 | G5: =F5*0.4 -> 28.86 | H5: 0 | I5: =E5+G5+H5 -> 70.68 | J5: 否
A6: 4 | B6: 20230114 | C6: 1 | D6: 70.99 | E6: =D6*0.6 -> 42.60 | F6: 71.20 | G6: =F6*0.4 -> 28.48 | H6: 0 | I6: =E6+G6+H6 -> 71.08 | J6: 否
A7: 5 | B7: 20230119 | C7: 1 | D7: 74.57 | E7: =D7*0.6 -> 44.74 | F7: 79.00 | G7: =F7*0.4 -> 31.60 | H7: 2 | I7: =E7+G7+H7 -> 78.34 | J7: 是
A8: 6 | B8: 20230121 | C8: 1 | D8: 76.79 | E8: =D8*0.6 -> 46.08 | F8: 77.40 | G8: =F8*0.4 -> 30.96 | H8: 1 | I8: =E8+G8+H8 -> 78.04 | J8: 是
A9: 7 | B9: 20230122 | C9: 1 | D9: 68.65 | E9: =D9*0.6 -> 41.19 | F9: 75.70 | G9: =F9*0.4 -> 30.28 | H9: 1 | I9: =E9+G9+H9 -> 72.47 | J9: 否
A10: 8 | B10: 20230124 | C10: 1 | D10: 69.94 | E10: =D10*0.6 -> 41.96 | F10: 87.50 | G10: =F10*0.4 -> 35.00 | H10: 0 | I10: =E10+G10+H10 -> 76.96 | J10: 是
A11: 9 | B11: 20230125 | C11: 1 | D11: 72.66 | E11: =D11*0.6 -> 43.60 | F11: 77.50 | G11: =F11*0.4 -> 31.00 | H11: 0 | I11: =E11+G11+H11 -> 74.60 | J11: 是
A12: 10 | B12: 20230129 | C12: 1 | D12: 72.16 | E12: =D12*0.6 -> 43.30 | F12: 72.90 | G12: =F12*0.4 -> 29.16 | H12: 0 | I12: =E12+G12+H12 -> 72.46 | J12: 否
A13: 11 | B13: 20230203 | C13: 2 | D13: 69.25 | E13: =D13*0.6 -> 41.55 | F13: 缺考 | G13: 0.00 | H13: 0 | I13: =E13+G13+H13 -> 41.55 | J13: 否
A14: 12 | B14: 20230206 | C14: 2 | D14: 68.63 | E14: =D14*0.6 -> 41.18 | F14: 82.60 | G14: =F14*0.4 -> 33.04 | H14: 1 | I14: =E14+G14+H14 -> 75.22 | J14: 是
A15: 13 | B15: 20230207 | C15: 2 | D15: 71.16 | E15: =D15*0.6 -> 42.70 | F15: 77.40 | G15: =F15*0.4 -> 30.96 | H15: 0 | I15: =E15+G15+H15 -> 73.66 | J15: 否
A16: 14 | B16: 20230208 | C16: 2 | D16: 73.32 | E16: =D16*0.6 -> 43.99 | F16: 73.70 | G16: =F16*0.4 -> 29.48 | H16: 2 | I16: =E16+G16+H16 -> 75.47 | J16: 是
A17: 15 | B17: 20230209 | C17: 2 | D17: 68.49 | E17: =D17*0.6 -> 41.09 | F17: 79.00 | G17: =F17*0.4 -> 31.60 | H17: 1 | I17: =E17+G17+H17 -> 73.69 | J17: 否
A18: 16 | B18: 20230212 | C18: 2 | D18: 73.85 | E18: =D18*0.6 -> 44.31 | F18: 81.20 | G18: =F18*0.4 -> 32.48 | H18: 1 | I18: =E18+G18+H18 -> 77.79 | J18: 是
A19: 17 | B19: 20230215 | C19: 2 | D19: 73.49 | E19: =D19*0.6 -> 44.10 | F19: 75.80 | G19: =F19*0.4 -> 30.32 | H19: 1 | I19: =E19+G19+H19 -> 75.42 | J19: 是
A20: 18 | B20: 20230216 | C20: 2 | D20: 71.48 | E20: =D20*0.6 -> 42.89 | F20: 79.80 | G20: =F20*0.4 -> 31.92 | H20: 0 | I20: =E20+G20+H20 -> 74.81 | J20: 否
A21: 19 | B21: 20230224 | C21: 2 | D21: 75.33 | E21: =D21*0.6 -> 45.20 | F21: 76.00 | G21: =F21*0.4 -> 30.40 | H21: 0 | I21: =E21+G21+H21 -> 75.60 | J21: 是
A22: 20 | B22: 20230225 | C22: 2 | D22: 71.94 | E22: =D22*0.6 -> 43.16 | F22: 75.40 | G22: =F22*0.4 -> 30.16 | H22: 1 | I22: =E22+G22+H22 -> 74.32 | J22: 否
A23: 21 | B23: 20230228 | C23: 3 | D23: 64.52 | E23: =D23*0.6 -> 38.71 | F23: 77.20 | G23: =F23*0.4 -> 30.88 | H23: 0 | I23: =E23+G23+H23 -> 69.59 | J23: 否
A24: 22 | B24: 20230229 | C24: 3 | D24: 73.99 | E24: =D24*0.6 -> 44.39 | F24: 77.90 | G24: =F24*0.4 -> 31.16 | H24: 0 | I24: =E24+G24+H24 -> 75.55 | J24: 是
A25: 23 | B25: 20230301 | C25: 3 | D25: 67.88 | E25: =D25*0.6 -> 40.73 | F25: 73.30 | G25: =F25*0.4 -> 29.32 | H25: 0 | I25: =E25+G25+H25 -> 70.05 | J25: 否
A26: 24 | B26: 20230302 | C26: 3 | D26: 67.71 | E26: =D26*0.6 -> 40.63 | F26: 74.04 | G26: =F26*0.4 -> 29.62 | H26: 1 | I26: =E26+G26+H26 -> 71.24 | J26: 否
A27: 25 | B27: 20230306 | C27: 3 | D27: 71.88 | E27: =D27*0.6 -> 43.13 | F27: 72.60 | G27: =F27*0.4 -> 29.04 | H27: 1 | I27: =E27+G27+H27 -> 73.17 | J27: 是
A28: 26 | B28: 20230307 | C28: 3 | D28: 70.00 | E28: =D28*0.6 -> 42.00 | F28: 76.50 | G28: =F28*0.4 -> 30.60 | H28: 1 | I28: =E28+G28+H28 -> 73.60 | J28: 是
A29: 27 | B29: 20230308 | C29: 3 | D29: 73.72 | E29: =D29*0.6 -> 44.23 | F29: 82.60 | G29: =F29*0.4 -> 33.04 | H29: 0 | I29: =E29+G29+H29 -> 77.27 | J29: 是
A30: 28 | B30: 20230309 | C30: 3 | D30: 78.16 | E30: =D30*0.6 -> 46.90 | F30: 78.20 | G30: =F30*0.4 -> 31.28 | H30: 1 | I30: =E30+G30+H30 -> 79.18 | J30: 是
A31: 29 | B31: 20230311 | C31: 3 | D31: 65.24 | E31: =D31*0.6 -> 39.14 | F31: 68.50 | G31: =F31*0.4 -> 27.40 | H31: 0 | I31: =E31+G31+H31 -> 66.54 | J31: 否
A32: 30 | B32: 20230312 | C32: 3 | D32: 67.89 | E32: =D32*0.6 -> 40.73 | F32: 80.00 | G32: =F32*0.4 -> 32.00 | H32: 0 | I32: =E32+G32+H32 -> 72.73 | J32: 否
A33: 31 | B33: 20230315 | C33: 4 | D33: 69.81 | E33: =D33*0.6 -> 41.88 | F33: 74.56 | G33: =F33*0.4 -> 29.82 | H33: 0 | I33: =E33+G33+H33 -> 71.71 | J33: 否
A34: 32 | B34: 20230316 | C34: 4 | D34: 67.35 | E34: =D34*0.6 -> 40.41 | F34: 73.80 | G34: =F34*0.4 -> 29.52 | H34: 1 | I34: =E34+G34+H34 -> 70.93 | J34: 否
A35: 33 | B35: 20230319 | C35: 4 | D35: 69.46 | E35: =D35*0.6 -> 41.68 | F35: 76.40 | G35: =F35*0.4 -> 30.56 | H35: 1 | I35: =E35+G35+H35 -> 73.24 | J35: 是
A36: 34 | B36: 20230322 | C36: 4 | D36: 67.99 | E36: =D36*0.6 -> 40.80 | F36: 81.16 | G36: =F36*0.4 -> 32.46 | H36: 0 | I36: =E36+G36+H36 -> 73.26 | J36: 是
A37: 35 | B37: 20230323 | C37: 4 | D37: 72.65 | E37: =D37*0.6 -> 43.59 | F37: 75.30 | G37: =F37*0.4 -> 30.12 | H37: 0 | I37: =E37+G37+H37 -> 73.71 | J37: 是
A38: 36 | B38: 20230325 | C38: 4 | D38: 64.12 | E38: =D38*0.6 -> 38.47 | F38: 74.80 | G38: =F38*0.4 -> 29.92 | H38: 0 | I38: =E38+G38+H38 -> 68.39 | J38: 否
A39: 37 | B39: 20230326 | C39: 4 | D39: 70.36 | E39: =D39*0.6 -> 42.22 | F39: 79.90 | G39: =F39*0.4 -> 31.96 | H39: 0 | I39: =E39+G39+H39 -> 74.18 | J39: 是
A40: 38 | B40: 20230327 | C40: 4 | D40: 68.23 | E40: =D40*0.6 -> 40.94 | F40: 77.40 | G40: =F40*0.4 -> 30.96 | H40: 1 | I40: =E40+G40+H40 -> 72.90 | J40: 否
A41: 39 | B41: 20230329 | C41: 4 | D41: 63.78 | E41: =D41*0.6 -> 38.27 | F41: 75.70 | G41: =F41*0.4 -> 30.28 | H41: 0 | I41: =E41+G41+H41 -> 68.55 | J41: 否
A42: 40 | B42: 20230330 | C42: 4 | D42: 73.67 | E42: =D42*0.6 -> 44.20 | F42: 78.50 | G42: =F42*0.4 -> 31.40 | H42: 0 | I42: =E42+G42+H42 -> 75.60 | J42: 是
A43: 41 | B43: 20230406 | C43: 5 | D43: 76.54 | E43: =D43*0.6 -> 45.92 | F43: 82.00 | G43: =F43*0.4 -> 32.80 | H43: 0 | I43: =E43+G43+H43 -> 78.72 | J43: 是
A44: 42 | B44: 20230409 | C44: 5 | D44: 71.71 | E44: =D44*0.6 -> 43.02 | F44: 73.20 | G44: =F44*0.4 -> 29.28 | H44: 0 | I44: =E44+G44+H44 -> 72.30 | J44: 否
A45: 43 | B45: 20230415 | C45: 5 | D45: 71.23 | E45: =D45*0.6 -> 42.74 | F45: 70.60 | G45: =F45*0.4 -> 28.24 | H45: 0 | I45: =E45+G45+H45 -> 70.98 | J45: 否
A46: 44 | B46: 20230417 | C46: 5 | D46: 73.11 | E46: =D46*0.6 -> 43.86 | F46: 77.80 | G46: =F46*0.4 -> 31.12 | H46: 0 | I46: =E46+G46+H46 -> 74.98 | J46: 是
A47: 45 | B47: 20230422 | C47: 5 | D47: 72.41 | E47: =D47*0.6 -> 43.44 | F47: 77.90 | G47: =F47*0.4 -> 31.16 | H47: 0 | I47: =E47+G47+H47 -> 74.60 | J47: 否
A48: 46 | B48: 20230425 | C48: 5 | D48: 71.76 | E48: =D48*0.6 -> 43.06 | F48: 73.86 | G48: =F48*0.4 -> 29.54 | H48: 0 | I48: =E48+G48+H48 -> 72.60 | J48: 否
A49: 47 | B49: 20230426 | C49: 5 | D49: 72.44 | E49: =D49*0.6 -> 43.46 | F49: 79.20 | G49: =F49*0.4 -> 31.68 | H49: 0 | I49: =E49+G49+H49 -> 75.14 | J49: 是
A50: 48 | B50: 20230501 | C50: 5 | D50: 74.99 | E50: =D50*0.6 -> 45.00 | F50: 78.06 | G50: =F50*0.4 -> 31.22 | H50: 0 | I50: =E50+G50+H50 -> 76.22 | J50: 是
A51: 49 | B51: 20230504 | C51: 5 | D51: 76.69 | E51: =D51*0.6 -> 46.01 | F51: 81.40 | G51: =F51*0.4 -> 32.56 | H51: 0 | I51: =E51+G51+H51 -> 78.57 | J51: 是
A52: 50 | B52: 20230506 | C52: 5 | D52: 73.71 | E52: =D52*0.6 -> 44.23 | F52: 76.50 | G52: =F52*0.4 -> 30.60 | H52: 0 | I52: =E52+G52+H52 -> 74.83 | J52: 否
A53: 51 | B53: 20230509 | C53: 5 | D53: 72.08 | E53: =D53*0.6 -> 43.25 | F53: 75.80 | G53: =F53*0.4 -> 30.32 | H53: 0 | I53: =E53+G53+H53 -> 73.57 | J53: 否
A54: 52 | B54: 20230510 | C54: 5 | D54: 76.14 | E54: =D54*0.6 -> 45.68 | F54: 78.80 | G54: =F54*0.4 -> 31.52 | H54: 0 | I54: =E54+G54+H54 -> 77.20 | J54: 是
A55: 53 | B55: 20230511 | C55: 6 | D55: 72.44 | E55: =D55*0.6 -> 43.46 | F55: 76.40 | G55: =F55*0.4 -> 30.56 | H55: 0 | I55: =E55+G55+H55 -> 74.02 | J55: 是
A56: 54 | B56: 20230512 | C56: 6 | D56: 76.50 | E56: =D56*0.6 -> 45.90 | F56: 68.60 | G56: =F56*0.4 -> 27.44 | H56: 1 | I56: =E56+G56+H56 -> 74.34 | J56: 是
A57: 55 | B57: 20230513 | C57: 6 | D57: 67.35 | E57: =D57*0.6 -> 40.41 | F57: 缺考 | G57: 0.00 | H57: 0 | I57: =E57+G57+H57 -> 40.41 | J57: 否
A58: 56 | B58: 20230514 | C58: 6 | D58: 75.87 | E58: =D58*0.6 -> 45.52 | F58: 75.40 | G58: =F58*0.4 -> 30.16 | H58: 0 | I58: =E58+G58+H58 -> 75.68 | J58: 是
A59: 57 | B59: 20230515 | C59: 6 | D59: 66.21 | E59: =D59*0.6 -> 39.73 | F59: 缺考 | G59: 0.00 | H59: 1 | I59: =E59+G59+H59 -> 40.73 | J59: 否
A60: 58 | B60: 20230520 | C60: 6 | D60: 66.88 | E60: =D60*0.6 -> 40.13 | F60: 75.20 | G60: =F60*0.4 -> 30.08 | H60: 1 | I60: =E60+G60+H60 -> 71.21 | J60: 否
A61: 59 | B61: 20230525 | C61: 6 | D61: 66.51 | E61: =D61*0.6 -> 39.91 | F61: 71.90 | G61: =F61*0.4 -> 28.76 | H61: 1 | I61: =E61+G61+H61 -> 69.67 | J61: 否
A62: 60 | B62: 20230530 | C62: 6 | D62: 73.08 | E62: =D62*0.6 -> 43.85 | F62: 81.50 | G62: =F62*0.4 -> 32.60 | H62: 0 | I62: =E62+G62+H62 -> 76.45 | J62: 是
A63: 61 | B63: 20230602 | C63: 6 | D63: 69.75 | E63: =D63*0.6 -> 41.85 | F63: 75.40 | G63: =F63*0.4 -> 30.16 | H63: 1 | I63: =E63+G63+H63 -> 73.01 | J63: 是
A64: 62 | B64: 20230607 | C64: 6 | D64: 67.69 | E64: =D64*0.6 -> 40.61 | F64: 73.80 | G64: =F64*0.4 -> 29.52 | H64: 1 | I64: =E64+G64+H64 -> 71.13 | J64: 否
A65: 63 | B65: 20230611 | C65: 7 | D65: 70.88 | E65: =D65*0.6 -> 42.53 | F65: 76.20 | G65: =F65*0.4 -> 30.48 | H65: 1 | I65: =E65+G65+H65 -> 74.01 | J65: 是
A66: 64 | B66: 20230612 | C66: 7 | D66: 72.29 | E66: =D66*0.6 -> 43.37 | F66: 78.70 | G66: =F66*0.4 -> 31.48 | H66: 1 | I66: =E66+G66+H66 -> 75.85 | J66: 是
A67: 65 | B67: 20230617 | C67: 7 | D67: 72.02 | E67: =D67*0.6 -> 43.21 | F67: 81.20 | G67: =F67*0.4 -> 32.48 | H67: 0 | I67: =E67+G67+H67 -> 75.69 | J67: 是
A68: 66 | B68: 20230620 | C68: 7 | D68: 69.60 | E68: =D68*0.6 -> 41.76 | F68: 74.70 | G68: =F68*0.4 -> 29.88 | H68: 0 | I68: =E68+G68+H68 -> 71.64 | J68: 否
A69: 67 | B69: 20230621 | C69: 7 | D69: 71.01 | E69: =D69*0.6 -> 42.60 | F69: 71.00 | G69: =F69*0.4 -> 28.40 | H69: 0 | I69: =E69+G69+H69 -> 71.00 | J69: 否
A70: 68 | B70: 20230622 | C70: 7 | D70: 69.81 | E70: =D70*0.6 -> 41.89 | F70: 76.90 | G70: =F70*0.4 -> 30.76 | H70: 0 | I70: =E70+G70+H70 -> 72.65 | J70: 否
A71: 69 | B71: 20230625 | C71: 7 | D71: 76.99 | E71: =D71*0.6 -> 46.20 | F71: 71.30 | G71: =F71*0.4 -> 28.52 | H71: 1 | I71: =E71+G71+H71 -> 75.72 | J71: 是
A72: 70 | B72: 20230701 | C72: 7 | D72: 72.56 | E72: =D72*0.6 -> 43.54 | F72: 73.40 | G72: =F72*0.4 -> 29.36 | H72: 0 | I72: =E72+G72+H72 -> 72.90 | J72: 否
A73: 71 | B73: 20230702 | C73: 7 | D73: 76.13 | E73: =D73*0.6 -> 45.68 | F73: 75.30 | G73: =F73*0.4 -> 30.12 | H73: 0 | I73: =E73+G73+H73 -> 75.80 | J73: 是
A74: 72 | B74: 20230709 | C74: 7 | D74: 71.93 | E74: =D74*0.6 -> 43.16 | F74: 71.20 | G74: =F74*0.4 -> 28.48 | H74: 0 | I74: =E74+G74+H74 -> 71.64 | J74: 否
A75: 73 | B75: 20230712 | C75: 8 | D75: 61.06 | E75: =D75*0.6 -> 36.64 | F75: 71.20 | G75: =F75*0.4 -> 28.48 | H75: 1 | I75: =E75+G75+H75 -> 66.12 | J75: 否
A76: 74 | B76: 20230713 | C76: 8 | D76: 64.12 | E76: =D76*0.6 -> 38.47 | F76: 82.00 | G76: =F76*0.4 -> 32.80 | H76: 1 | I76: =E76+G76+H76 -> 72.27 | J76: 否
A77: 75 | B77: 20230716 | C77: 8 | D77: 66.34 | E77: =D77*0.6 -> 39.80 | F77: 79.00 | G77: =F77*0.4 -> 31.60 | H77: 1 | I77: =E77+G77+H77 -> 72.40 | J77: 否
A78: 76 | B78: 20230717 | C78: 8 | D78: 75.66 | E78: =D78*0.6 -> 45.40 | F78: 80.90 | G78: =F78*0.4 -> 32.36 | H78: 1 | I78: =E78+G78+H78 -> 78.76 | J78: 是
A79: 77 | B79: 20230718 | C79: 8 | D79: 58.92 | E79: =D79*0.6 -> 35.35 | F79: 71.90 | G79: =F79*0.4 -> 28.76 | H79: 1 | I79: =E79+G79+H79 -> 65.11 | J79: 否
A80: 78 | B80: 20230719 | C80: 8 | D80: 57.70 | E80: =D80*0.6 -> 34.62 | F80: 71.90 | G80: =F80*0.4 -> 28.76 | H80: 2 | I80: =E80+G80+H80 -> 65.38 | J80: 否
A81: 79 | B81: 20230720 | C81: 8 | D81: 72.08 | E81: =D81*0.6 -> 43.25 | F81: 75.50 | G81: =F81*0.4 -> 30.20 | H81: 1 | I81: =E81+G81+H81 -> 74.45 | J81: 是
A82: 80 | B82: 20230721 | C82: 8 | D82: 65.43 | E82: =D82*0.6 -> 39.26 | F82: 77.30 | G82: =F82*0.4 -> 30.92 | H82: 1 | I82: =E82+G82+H82 -> 71.18 | J82: 否
A83: 81 | B83: 20230722 | C83: 8 | D83: 68.99 | E83: =D83*0.6 -> 41.40 | F83: 83.70 | G83: =F83*0.4 -> 33.48 | H83: 1 | I83: =E83+G83+H83 -> 75.88 | J83: 是
A84: 82 | B84: 20230723 | C84: 8 | D84: 68.57 | E84: =D84*0.6 -> 41.14 | F84: 77.90 | G84: =F84*0.4 -> 31.16 | H84: 1 | I84: =E84+G84+H84 -> 73.30 | J84: 是
A85: 83 | B85: 20230725 | C85: 8 | D85: 79.75 | E85: =D85*0.6 -> 47.85 | F85: 82.70 | G85: =F85*0.4 -> 33.08 | H85: 1 | I85: =E85+G85+H85 -> 81.93 | J85: 是
A86: 84 | B86: 20230726 | C86: 8 | D86: 65.41 | E86: =D86*0.6 -> 39.24 | F86: 81.90 | G86: =F86*0.4 -> 32.76 | H86: 1 | I86: =E86+G86+H86 -> 73.00 | J86: 是
A87: 85 | B87: 20230727 | C87: 8 | D87: 69.63 | E87: =D87*0.6 -> 41.78 | F87: 78.00 | G87: =F87*0.4 -> 31.20 | H87: 1 | I87: =E87+G87+H87 -> 73.98 | J87: 是
A88: 86 | B88: 20230728 | C88: 8 | D88: 70.22 | E88: =D88*0.6 -> 42.13 | F88: 73.30 | G88: =F88*0.4 -> 29.32 | H88: 1 | I88: =E88+G88+H88 -> 72.45 | J88: 是
A89: 87 | B89: 20230729 | C89: 8 | D89: 69.51 | E89: =D89*0.6 -> 41.71 | F89: 75.60 | G89: =F89*0.4 -> 30.24 | H89: 1 | I89: =E89+G89+H89 -> 72.95 | J89: 是
A90: 88 | B90: 20230730 | C90: 8 | D90: 57.65 | E90: =D90*0.6 -> 34.59 | F90: 缺考 | G90: 0.00 | H90: 1 | I90: =E90+G90+H90 -> 35.59 | J90: 否
A91: 89 | B91: 20230803 | C91: 8 | D91: 66.73 | E91: =D91*0.6 -> 40.04 | F91: 67.90 | G91: =F91*0.4 -> 27.16 | H91: 1 | I91: =E91+G91+H91 -> 68.20 | J91: 否
A92: 90 | B92: 20230806 | C92: 8 | D92: 65.45 | E92: =D92*0.6 -> 39.27 | F92: 79.60 | G92: =F92*0.4 -> 31.84 | H92: 1 | I92: =E92+G92+H92 -> 72.11 | J92: 否
A93: 91 | B93: 20230807 | C93: 8 | D93: 64.22 | E93: =D93*0.6 -> 38.53 | F93: 81.40 | G93: =F93*0.4 -> 32.56 | H93: 2 | I93: =E93+G93+H93 -> 73.09 | J93: 是
A94: 92 | B94: 20230811 | C94: 8 | D94: 62.01 | E94: =D94*0.6 -> 37.20 | F94: 78.70 | G94: =F94*0.4 -> 31.48 | H94: 1 | I94: =E94+G94+H94 -> 69.68 | J94: 否
A95: 93 | B95: 20230822 | C95: 9 | D95: 77.49 | E95: =D95*0.6 -> 46.50 | F95: 79.90 | G95: =F95*0.4 -> 31.96 | H95: 0 | I95: =E95+G95+H95 -> 78.46 | J95: 是
A96: 94 | B96: 20230823 | C96: 9 | D96: 74.30 | E96: =D96*0.6 -> 44.58 | F96: 78.60 | G96: =F96*0.4 -> 31.44 | H96: 0 | I96: =E96+G96+H96 -> 76.02 | J96: 否
A97: 95 | B97: 20230901 | C97: 9 | D97: 77.94 | E97: =D97*0.6 -> 46.76 | F97: 81.30 | G97: =F97*0.4 -> 32.52 | H97: 1 | I97: =E97+G97+H97 -> 80.28 | J97: 是
A98: 96 | B98: 20230903 | C98: 9 | D98: 80.36 | E98: =D98*0.6 -> 48.22 | F98: 81.50 | G98: =F98*0.4 -> 32.60 | H98: 0 | I98: =E98+G98+H98 -> 80.82 | J98: 是
A99: 97 | B99: 20230907 | C99: 9 | D99: 75.79 | E99: =D99*0.6 -> 45.48 | F99: 80.00 | G99: =F99*0.4 -> 32.00 | H99: 0 | I99: =E99+G99+H99 -> 77.48 | J99: 否
A100: 98 | B100: 20230911 | C100: 9 | D100: 75.65 | E100: =D100*0.6 -> 45.39 | F100: 81.90 | G100: =F100*0.4 -> 32.76 | H100: 0 | I100: =E100+G100+H100 -> 78.15 | J100: 是
A101: 99 | B101: 20230914 | C101: 9 | D101: 74.69 | E101: =D101*0.6 -> 44.81 | F101: 72.80 | G101: =F101*0.4 -> 29.12 | H101: 0 | I101: =E101+G101+H101 -> 73.93 | J101: 否
A102: 100 | B102: 20230923 | C102: 9 | D102: 73.65 | E102: =D102*0.6 -> 44.19 | F102: 83.10 | G102: =F102*0.4 -> 33.24 | H102: 0 | I102: =E102+G102+H102 -> 77.43 | J102: 否
A103: 101 | B103: 20230930 | C103: 11 | D103: 75.62 | E103: =D103*0.6 -> 45.37 | F103: 77.90 | G103: =F103*0.4 -> 31.16 | H103: 0 | I103: =E103+G103+H103 -> 76.53 | J103: 否
A104: 102 | B104: 20231003 | C104: 11 | D104: 77.52 | E104: =D104*0.6 -> 46.51 | F104: 82.60 | G104: =F104*0.4 -> 33.04 | H104: 0 | I104: =E104+G104+H104 -> 79.55 | J104: 是
A105: 103 | B105: 20231006 | C105: 11 | D105: 76.04 | E105: =D105*0.6 -> 45.62 | F105: 80.40 | G105: =F105*0.4 -> 32.16 | H105: 0 | I105: =E105+G105+H105 -> 77.78 | J105: 是
A106: 104 | B106: 20231009 | C106: 11 | D106: 75.69 | E106: =D106*0.6 -> 45.42 | F106: 75.00 | G106: =F106*0.4 -> 30.00 | H106: 0 | I106: =E106+G106+H106 -> 75.42 | J106: 否
A107: 105 | B107: 20231027 | C107: 12 | D107: 74.57 | E107: =D107*0.6 -> 44.74 | F107: 76.10 | G107: =F107*0.4 -> 30.44 | H107: 0 | I107: =E107+G107+H107 -> 75.18 | J107: 是
A108: 106 | B108: 20231030 | C108: 12 | D108: 72.82 | E108: =D108*0.6 -> 43.69 | F108: 74.80 | G108: =F108*0.4 -> 29.92 | H108: 0 | I108: =E108+G108+H108 -> 73.61 | J108: 否
A109: 107 | B109: 20231116 | C109: 12 | D109: 71.73 | E109: =D109*0.6 -> 43.04 | F109: 75.90 | G109: =F109*0.4 -> 30.36 | H109: 0 | I109: =E109+G109+H109 -> 73.40 | J109: 否
A110: 108 | B110: 20231119 | C110: 12 | D110: 73.09 | E110: =D110*0.6 -> 43.86 | F110: 80.60 | G110: =F110*0.4 -> 32.24 | H110: 0 | I110: =E110+G110+H110 -> 76.10 | J110: 是
